Cogmind - Beta 12 @@@ ROGUE MODE // 2023.10.07 @ 01:41:59 Player: heavymetalmidis Result: Destroyed by P-60 Hacker with Shock Rifle Performance ------------- Evolutions (3) 1500 Regions Visited (4) 800 Robots Destroyed (103) 515 Value Destroyed (2237) 2237 Prototype IDs (9) 180 Alien Tech Used (0) 0 Bonus (143) 143 TOTAL SCORE: 5375 Bonus ------- High Alert Combat Kills 143 Cogmind --------- Core Integrity 0/700 Matter 44/300 Energy 29/100 System Corruption 6% Temperature Cool (0) Movement Core (50) Location -7/Factory Parts ------- > --- POWER (2) -------- (None) > --- PROPULSION (4) --- VTOL Module VTOL Module > --- UTILITY (4) ------ Advanced Terrain Scan Processor > --- WEAPON (3) ------- (None) > --- INVENTORY (5) ---- Cesium-ion Thruster Advanced Weight Redist. System Advanced ECM Suite Field Recycling Unit (0) Heavy Rocket Launcher Peak State ------------ > --- POWER ------------ Improved Deuterium Engine Heavy Deuterium Engine > --- PROPULSION ------- Cesium-ion Thruster Cesium-ion Thruster Cesium-ion Thruster Xenon Bombardment Thruster > --- UTILITY ---------- Small Storage Unit Advanced Weight Redist. System Improved Terrain Scanner Advanced Terrain Scan Processor > --- WEAPON ----------- Improved Assault Rifle Heavy Rocket Launcher > --- INVENTORY -------- Light Nuclear Core Cesium-ion Thruster Surge Thruster Advanced Weight Redist. System Improved Sensor Array Advanced ECM Suite Flak Cannon [Rating: 42] Favorites ----------- Power Ion Engine Engine Ion Engine Power Core Light Nuclear Core Propulsion Light Treads Treads Light Treads Flight Unit Cesium-ion Thruster Utility Large Storage Unit Device Sensor Array Storage Large Storage Unit Processor Transport Network Coupler Protection Improved Light Armor Plating Weapon Improved Assault Rifle Energy Gun Medium Laser Ballistic Gun Improved Assault Rifle Ballistic Cannon Improved Light Cannon Launcher Improved Grenade Launcher Special Weapon Mining Laser Slashing Weapon Axe Build | -11 -10 -9 -8 -7 ------- Run | Jun Mat Mat Mat Fac Slots Evolved 6 | . . 2 2 2 Power 1 | . . . . 1 Propulsion 2 | . . . 2 . Utility 2 | . . 1 . 1 Weapon 1 | . . 1 . . Parts Attached 123 | 6 25 36 39 17 Power 15 | 1 1 7 3 3 Engine 14 | 1 1 7 2 3 Core 1 | . . . 1 . Reactor . | . . . . . Propulsion 28 | 2 2 8 10 6 Treads 12 | 2 2 8 . . Leg . | . . . . . Wheel . | . . . . . Hover . | . . . . . Flight 16 | . . . 10 6 Utility 32 | 1 4 9 13 5 Device 21 | . 3 6 10 2 Storage 7 | 1 1 2 3 . Processor 3 | . . 1 . 2 Hackware . | . . . . . Protection 1 | . . . . 1 Artifact . | . . . . . Weapon 48 | 2 18 12 13 3 Energy Gun 1 | 1 . . . . Energy Cannon . | . . . . . Ballistic Gun 22 | 1 8 9 3 1 Ballistic Cannon 13 | . 5 2 5 1 Launcher 3 | . . . 2 1 Special Weapon 8 | . 5 1 2 . Impact Weapon . | . . . . . Slashing Weapon 1 | . . . 1 . Piercing Weapon . | . . . . . Special Melee Weapon . | . . . . . Unidentified Prototypes 1 | . . . . 1 Parts Lost 22 | . . 7 3 12 Power 4 | . . 1 . 3 Propulsion 9 | . . 1 1 7 Utility 4 | . . 1 1 2 Weapon 5 | . . 4 1 . Highest Loss Streak 4 | . . 4 2 4 To Critical Strikes 1 | . . 1 . . Average Slot Usage (%) 95 | . 99 97 92 68 Engine 11 | . 14 10 8 8 Treads 19 | . 27 21 . . Flight 5 | . . . 34 24 Device 11 | . 13 9 17 11 Storage 12 | . 14 12 9 6 Processor 5 | . . 9 . 5 Ballistic Gun 20 | . 20 24 13 4 Ballistic Cannon 6 | . 5 7 3 1 Naked Turns . | . . . . . Heaviest Build 41 | 13 34 41 41 30 Greatest Support 45 | 40 40 45 44 30 Greatest Overweight (x) 4 | . . 1 1 4 Average Overweight (x) . | . . . . . Largest Inventory Capacity 15 | 8 15 15 15 8 Average Capacity 13 | 7 14 15 9 7 Most Carried 15 | 8 15 15 15 8 Average Carried 13 | 4 14 14 9 7 Final Capacity 15 | 8 15 15 8 5 Final Carried 15 | 6 15 15 8 5 Class Distribution -------------------- 33% | Mutant 21% | Skirmisher 18% | Tank 14% | Sprinter 7% | Scavenger-Tank 4% | Scavenger-Skirmisher Dominant Class ---------------- Mutant | -10/Materials Skirmisher | -9/Materials Sprinter | -8/Materials Sprinter | -7/Factory Resources | -11 -10 -9 -8 -7 ----------- Run | Jun Mat Mat Mat Fac Matter Collected 3071 | 177 855 1459 456 124 Remotely 159 | . . 159 . . Salvage Created 3181 | . 607 1998 507 69 Parts 210 | . 52 115 39 4 Haulers Intercepted 11 | . 2 6 3 . Recyclers Shooed 4 | . 1 3 . . Parts Field Recycled . | . . . . . Retrieved Matter . | . . . . . Parts Self-Destructed . | . . . . . Prevented . | . . . . . Kills | -11 -10 -9 -8 -7 ------- Run | Jun Mat Mat Mat Fac Combat Hostiles Destroyed 66 | . 16 38 9 3 Guns 40 | . 16 18 6 . Cannons 24 | . . 20 1 3 AOE 2 | . . . 2 . Classes Destroyed 13 | . 5 5 3 . Worker 6 | . . 3 1 2 Builder 3 | . . 2 1 . Tunneler 1 | . . . 1 . Hauler 11 | . 2 6 3 . Recycler 7 | . 2 5 . . Mechanic 1 | . . 1 . . Operator 1 | . . . 1 . Watcher 7 | . 2 4 1 . Swarmer 23 | . 9 8 3 3 Grunt 29 | . 7 19 3 . Brawler 1 | . . . 1 . Duelist 1 | . . 1 . . Sentry 12 | . . 10 2 . Best Kill Streak 7 | . 7 7 7 3 Combat Bots Only 7 | . 7 6 3 3 Max Kills in Single Turn 2 | . 2 2 2 1 Gunslinging 1 | . 1 . . . Exploded 2 | . . . 2 . Melee . | . . . . . Uniques/NPCs Destroyed . | . . . . . Combat | -11 -10 -9 -8 -7 -------- Run | Jun Mat Mat Mat Fac Damage Taken 4388 | . 384 1650 831 1523 Core 1059 | . 35 199 114 711 Absorbed by Shields 151 | . . 151 . . Regen/Repaired (Parts) 364 | . 215 135 14 . Core Remaining (%) 78 | 100 86 50 79 . Volleys Fired 239 | . 62 107 53 17 Largest 3 | . 2 3 3 1 Hottest 146 | . 100 146 69 44 Shots Fired 530 | . 115 310 88 17 Gun 352 | . 107 172 68 5 Cannon 166 | . . 137 17 12 Launcher 3 | . . . 3 . Special 9 | . 8 1 . . Kinetic 510 | . 99 309 85 17 Thermal 17 | . 16 1 . . Explosive 3 | . . . 3 . Electromagnetic . | . . . . . Robot Hit Streak 21 | . 9 21 15 5 Robot Miss Streak 9 | . 6 6 8 9 Penetration Max . | . . . . . Secondary Targets 4 | . 4 . . . Max Gunslinging Chain 1 | . 1 . . . Shots Hit Robots 313 | . 65 171 63 14 Core Hits 160 | . 36 71 40 13 Critical Kills . | . . . . . Critical Parts Destroyed 2 | . . 1 1 . Critical Strikes 8 | . 1 6 1 . Burn 1 | . 1 . . . Destroy 2 | . . 1 1 . Blast 5 | . . 5 . . Melee Attacks . | . . . . . Impact . | . . . . . Slashing . | . . . . . Piercing . | . . . . . Sneak Attacks . | . . . . . Combat Hostiles . | . . . . . Follow-up Attacks . | . . . . . Damage Inflicted 5866 | . 915 3443 1296 212 Guns 3316 | . 915 1572 770 59 Cannons 2150 | . . 1792 242 116 Explosions 347 | . . 63 284 . Melee . | . . . . . Ramming 53 | . . 16 . 37 Kinetic 5381 | . 830 3364 1012 175 Thermal 148 | . 85 63 . . Explosive 284 | . . . 284 . Electromagnetic . | . . . . . Impact . | . . . . . Slashing . | . . . . . Piercing . | . . . . . Highest Corruption 6 | . 4 1 2 6 Average Corruption 2 | . 3 1 2 2 Corruption Purged . | . . . . . Corruption Blocked . | . . . . . Effects 40 | . 24 11 3 2 Message Errors 12 | . 5 5 1 1 Matter Fused 11 | . 8 2 . 1 Heat Flow Errors 4 | . 3 1 . . Energy Discharges 2 | . 1 1 . . Data Loss (minor) 7 | . 4 2 1 . Data Loss (major) 1 | . 1 . . . Misfires 1 | . . . 1 . Alerts 1 | . 1 . . . Weapon Failures 1 | . 1 . . . Overload Shots . | . . . . . Overflow Damage 73 | . . 73 . . Projectiles 30 | . . 30 . . Explosions 43 | . . 43 . . Melee . | . . . . . Knockbacks 22 | . . 14 2 6 Impact 2 | . . 1 . 1 Kinetic 20 | . . 13 2 5 Secondary . | . . . . . Self-Inflicted Damage 58 | . . 41 . 17 Shots 1 | . . 1 . . Rammed 8 | . . 1 . 7 Targets Rammed 9 | . . 2 . 7 Kicked . | . . . . . Crushed 1 | . . 1 . . Highest Temperature 380 | . 255 380 52 77 Average Temperature 59 | . 58 90 15 10 Received Heat Transfer 1029 | . 108 597 315 9 Siege Activations . | . . . . . Robots Corrupted . | . . . . . Combat Hostiles . | . . . . . Parts Fried . | . . . . . Impact Corruptions . | . . . . . Robots Melted . | . . . . . Combat Hostiles . | . . . . . Parts Melted 1 | . 1 . . . Heat Transferred 383 | . 333 50 . . Parts Sabotaged . | . . . . . Parts Stolen . | . . . . . Parts Stripped . | . . . . . Power Chain Reactions . | . . . . . Missiles Intercepted . | . . . . . Alert | -11 -10 -9 -8 -7 ------- Run | Jun Mat Mat Mat Fac Peak Influence 997 | . 386 642 997 719 Initial 453 | . . 92 265 453 Average 348 | . 187 392 491 496 Maximum Alert Level 3 | . 1 2 3 3 Low Security (%) 22 | 100 45 15 . . Level 1 38 | . 54 33 34 28 Level 2 36 | . . 51 50 61 Level 3 2 | . . . 15 9 Level 4 . | . . . . . Level 5 . | . . . . . High Security . | . . . . . Max Security . | . . . . . Squads Dispatched 14 | . 3 4 3 4 Investigation 4 | . 1 2 . 1 Extermination 2 | . . . . 2 Reinforcement 7 | . 2 2 2 1 Assault 1 | . . . 1 . Garrison . | . . . . . Intercept . | . . . . . Searches Triggered 1 | . . . . 1 Construction Impeded 1 | . . . 1 . Haulers Reinforced . | . . . . . Active Scanning Responses . | . . . . . Cargo Convoy Interrupts . | . . . . . Stealth | -11 -10 -9 -8 -7 --------- Run | Jun Mat Mat Mat Fac Distress Signals 2 | . 1 . 1 . Communications Jammed . | . . . . . Distress Signals . | . . . . . Times Spotted 169 | . 37 55 54 23 Peak Tracking Total 15 | . 9 6 15 9 Tactical Retreats 18 | . 3 1 10 4 Traps | -11 -10 -9 -8 -7 ------- Run | Jun Mat Mat Mat Fac Traps Triggered 8 | . 3 4 1 . Indirectly . | . . . . . Trap Hack Attempts . | . . . . . Triggered . | . . . . . Disarmed . | . . . . . Reprogrammed . | . . . . . Reused . | . . . . . Traps Extracted . | . . . . . Installed . | . . . . . Triggered . | . . . . . Machines | -11 -10 -9 -8 -7 ---------- Run | Jun Mat Mat Mat Fac Machines Disabled 4 | . . 4 . . Max in Single Turn 2 | . . 2 . . Machines Repaired . | . . . . . Machines Sabotaged . | . . . . . Overloaded Fab Kills . | . . . . . Hacking | -11 -10 -9 -8 -7 --------- Run | Jun Mat Mat Mat Fac Machines Accessed 29 | . 6 11 8 4 Terminals 15 | . 4 6 4 1 Fabricators . | . . . . . Repair Stations 4 | . 1 1 1 1 Recycling Units 5 | . 1 2 1 1 Scanalyzers 5 | . . 2 2 1 Garrison Access . | . . . . . Total Hacks 83 | . 22 30 18 13 Successful 45 | . 14 17 8 6 Failed 38 | . 8 13 10 7 Catastrophic 5 | . 3 1 . 1 Database Lockouts . | . . . . . Manual . | . . . . . Terminals 36 | . 8 18 9 1 Fabricators . | . . . . . Repair Stations 19 | . 10 2 2 5 Recycling Units 13 | . 4 3 1 5 Scanalyzers 15 | . . 7 6 2 Garrison Access . | . . . . . Terminal Hacks 10 | . 3 5 1 1 Record 1 | . 1 . . . Prototype ID Bank 5 | . 1 3 1 . Open DSF 1 | . . . . 1 Emergency Access Points 1 | . 1 . . . Unreport Threat 1 | . . 1 . . Registered Components 1 | . . 1 . . Fabricator Hacks . | . . . . . Repair Station Hacks 14 | . 8 2 2 2 Scan Component 7 | . 4 1 1 1 Repair 7 | . 4 1 1 1 Recycling Unit Hacks 8 | . 3 3 1 1 Process 2 | . 1 . . 1 Report Inventory 5 | . 1 3 1 . Retrieve Matter 1 | . 1 . . . Scanalyzer 13 | . . 7 4 2 Insert Component 7 | . . 4 2 1 Analyze 6 | . . 3 2 1 Garrison Access Hacks . | . . . . . Unauthorized Hacks . | . . . . . Terminals . | . . . . . Fabricators . | . . . . . Repair Stations . | . . . . . Recycling Units . | . . . . . Scanalyzers . | . . . . . Garrison Access . | . . . . . Data Cores Recovered . | . . . . . Used . | . . . . . Hacking Detections 22 | . 5 8 6 3 Full Trace Events 2 | . . 1 . 1 Feedback Events 1 | . . . . 1 Corruption 1 | . . . . 1 Feedback Blocked . | . . . . . Robot Schematics Acquired . | . . . . . Robots Built . | . . . . . Authchips . | . . . . . Time . | . . . . . Total Robot Build Rating . | . . . . . Part Schematics Acquired 6 | . . 3 2 1 Parts Built . | . . . . . Authchips . | . . . . . Time . | . . . . . Total Part Build Rating . | . . . . . Parts Repaired 7 | . 4 1 1 1 Time 185 | . 104 13 38 30 Parts Recycled . | . . . . . Recycled Matter 361 | . 354 . . 7 Retrieved Matter 564 | . 564 . . . Retrieved Components . | . . . . . Parts Scanalyzed 6 | . . 3 2 1 Part Schematics Acquired 6 | . . 3 2 1 Parts Damaged 1 | . . . . 1 Bothacking | -11 -10 -9 -8 -7 ------------ Run | Jun Mat Mat Mat Fac Used RIF Installer . | . . . . . Robots Hacked . | . . . . . Non-combat . | . . . . . Combat . | . . . . . Robot Hacks Applied . | . . . . . Relay Couplers Released . | . . . . . Fabnet Peak Effective % . | . . . . . Robots Rewired . | . . . . . Allies Hacked . | . . . . . Hacks Repelled . | . . . . . Allies | -11 -10 -9 -8 -7 -------- Run | Jun Mat Mat Mat Fac Total Allies . | . . . . . Largest Group . | . . . . . Highest-Rated Group . | . . . . . Highest-Rated Ally . | . . . . . Total Orders . | . . . . . Ally Attacks . | . . . . . Total Damage . | . . . . . Kills . | . . . . . Allies Corrupted . | . . . . . Allies Melted . | . . . . . Intel | -11 -10 -9 -8 -7 ------- Run | Jun Mat Mat Mat Fac Robot Analysis Total . | . . . . . Derelict Logs Recovered . | . . . . . Drone Launches . | . . . . . Drone Recoveries . | . . . . . Exploration | -11 -10 -9 -8 -7 ------------- Run | Jun Mat Mat Mat Fac Turns Passed 7639 | 79 2168 4028 790 574 Spaces Moved 5769 | 41 1038 2119 1337 1234 Core 51 | 3 . . . 48 Treads 3220 | 38 1038 2119 25 . Legs . | . . . . . Wheels . | . . . . . Hover . | . . . . . Flight 2498 | . . . 1312 1186 Fastest Speed 26 | 50 160 145 26 26 Average Speed 102 | 151 160 157 31 33 Slowest Speed 360 | 160 160 240 145 360 Overloaded Moves . | . . . . . Propulsion Burnouts . | . . . . . Robots Hopped 46 | . . . 35 11 Cave-ins Triggered . | . . . . . Exploration Rate (%) 62 | 5 99 99 77 34 Regions Visited 4 Branch Regions . Pre-discovered Areas . | . . . . . Known Exits Taken . | . . . . . Unknown Exits Taken 4 | 1 1 1 1 . Scrap Searched . | . . . . . Spaces Dug 8 | . 7 1 . . Terrain Destroyed 60 | . 8 28 24 . Melee . | . . . . . Projectile 16 | . 8 8 . . AOE 44 | . . 20 24 . Terrain Rammed . | . . . . . Walls Destroyed . | . . . . . Machines Disabled . | . . . . . Actions | -11 -10 -9 -8 -7 --------- Run | Jun Mat Mat Mat Fac Total 7034 | 58 1421 2598 1590 1367 Wait 690 | . 224 237 151 78 Move 5678 | 40 1037 2118 1270 1213 Hop 41 | . . . 31 10 Pick Up 126 | 12 40 48 14 12 Fast Attach 20 | . 5 3 6 6 Attach 33 | 6 2 11 9 5 Detach 10 | . 1 . 6 3 Swap 70 | . 18 22 24 6 Drop 118 | . 32 50 26 10 Fire 239 | . 62 107 53 17 Melee . | . . . . . Ram 7 | . . . . 7 Kick . | . . . . . Crush 2 | . . 2 . . Escape Stasis . | . . . . . Rewire . | . . . . . Trap . | . . . . . Miscellaneous . | . . . . . Route ------- -11/Junkyard -10/Materials (discovered 5 exits: *Mat x3 / [*Min x2]) -9/Materials (discovered 5 exits: *Mat x3 / [*Min] / [*Sto]) -8/Materials (discovered 2 exits: *Fac x2) -7/Factory (discovered 4 exits: [*Fac x2] / [*Low x2]) History --------- Turn | Location | Event 10 | -11/Junkyard | Discovered new exit (range 14) 80 | -11/Junkyard | Entered Materials 290 | -10/Materials | Discovered new exit (range 13) 317 | -10/Materials | Build established: Mutant 565 | -10/Materials | Discovered new exit (range 4) 932 | -10/Materials | Discovered new exit (range 13) 1121 | -10/Materials | Destroyed 7 combat bots 1745 | -10/Materials | Discovered new exit (range 16) 1877 | -10/Materials | Repaired Lgt. Treads 1904 | -10/Materials | Repaired Lgt. Treads 1932 | -10/Materials | Repaired Lgt. Treads 1959 | -10/Materials | Repaired Mining Laser 2132 | -10/Materials | Discovered new exit (range 4) 2248 | -10/Materials | Entered another Materials area 2248 | -9/Materials | Evolved 2 slots: Utility x1, Weapon x1 2533 | -9/Materials | Build established: Skirmisher 2845 | -9/Materials | Lost 4 parts (1p1u2w) 2889 | -9/Materials | Discovered new exit (range 15) 3002 | -9/Materials | Discovered new exit (range 14) 3411 | -9/Materials | Repaired Lgt. Treads 3634 | -9/Materials | Build established: Scavenger-Skirmisher 4023 | -9/Materials | Build established: Scavenger-Tank 4558 | -9/Materials | Discovered new exit (range 15) 4598 | -9/Materials | Build established: Tank 5130 | -9/Materials | Discovered new exit (range 4) 5336 | -9/Materials | Discovered new exit (range 11) 5981 | -9/Materials | Build established: Skirmisher 6276 | -9/Materials | Entered another Materials area 6276 | -8/Materials | Evolved 2 slots: Propulsion x2 6529 | -8/Materials | Repaired Surge Thruster 6596 | -8/Materials | Discovered new exit (range 5) 6676 | -8/Materials | First assault squad dispatched 6723 | -8/Materials | Build established: Sprinter 6931 | -8/Materials | Discovered new exit (range 16) 7066 | -8/Materials | Entered Factory 7066 | -7/Factory | Evolved 2 slots: Power x1, Utility x1 7086 | -7/Factory | Discovered new exit (range 12) 7133 | -7/Factory | Discovered new exit (range 16) 7239 | -7/Factory | Discovered new exit (range 11) 7439 | -7/Factory | Repaired Broken Adv. ECM Suite 7458 | -7/Factory | Discovered new exit (range 4) 7466 | -7/Factory | Search patrols dispatched 7561 | -7/Factory | Lost 4 parts (3n1u) 7593 | -7/Factory | Core integrity fell below 50% 7601 | -7/Factory | Core integrity fell below 20% 7632 | -7/Factory | Lost 4 parts (2p1n1u) 7640 | -7/Factory | Destroyed by P-60 Hacker with Shock Rifle Last Messages --------------- 07602_ M-13 Machinist knocked back. 07603_ K-01 Serf destroyed. 07604_ Penetrated by Slug. 07604_ Acquired 12 matter. 07609_ R-06 Scavenger collects Corrupted Sml. Matter Pod. 07610_ K-01 Serf cleans the Terminal. 07616_ Acquired VTOL Module. 07616_ Pressure Siphon disabled. 07618_ Acquired VTOL Module. To regain energy, simply wait via the mouse wheel '.', or KP5. Also make sure your per-turn energy generation is a net positive, and consider deactivating power-draining parts if not. 07632_ Slammed into P-60 Hacker. 07632_ VTOL Module broken. 07632_ Destabilizing: Short circuit. 07633_ Slammed into P-60 Hacker. 07633_ Slug penetrates Wall. 07634_ VTOL Module destroyed. 07636_ Broken VTOL Module destroyed. 07637_ Slug penetrates Pressure Siphon. Map ----- +----------------------------------------------------+ | ???????????????????????????????????????????# """ | | ??????????????????????????????????????###### | | ??????????????????????????????????????# | | ??????????????????????????????????????# | | ??????????????????????????????????????# | | ??????????????????????????????????????# ######## | | ?????????????????????????????????????## ######## | | ?????????????????????????????######### | | ?????????????????????????????# | | ?????????????????????????????# T | | ?????????????????????????????# ####### | | ?????????????????????????????# ##### #?????? | | ????????????????????????##+### #???#######?????? | | ??????????? ########## #???????????????? | | ??????????? #???????????????? | | ??????????? #???????????????? | | ???????????? p#+############??????? | | ??????????????? """ """ ! # #??????? | | ?????????????????"" ""% ! p# """ """ ! #??????? | | ????????????????""" """ ! # """ """ #??????? | | ??????????? """ ""% # """ """ #??????? | | ??????????? # #??????? | | ??????????? # """ """ #??????? | | ????????????############ # """ """ #??????? | | ???????????????????????# # """ """ #??????? | | ???????????????????????# @ # #??????? | | ???????????????????????+ # ! ! #??????? | | ???????????????????????# # #??????? | | ???????????????????????# # #??????? | | ???????????????????????# ##############??????? | | ???????????????????????# u#???????????????????? | | ???????????????????????# #???????????????????? | | ???????????????????????# ???????????????????? | | ???????????????????????# ??????????????????? | | ???????????????????????# ??????????????????? | | ???????????????????????# r?????????????????? | | ???????????????????????# ?????????????????? | | ???????????????????????######## ????????????????? | | ??????????????????????????????? ????????????????? | | ?????????????????????????????????????????????????? | | ?????????????????????????????????????????????????? | | ?????????????????????????????????????????????????? | | ?????????????????????????????????????????????????? | | ?????????????????????????????????????????????????? | | ?????????????????????????????????????????????????? | | ?????????????????????????????????????????????????? | | ?????????????????????????????????????????????????? | | ?????????????????????????????????????????????????? | | ?????????????????????????????????????????????????? | | ?????????????????????????????????????????????????? | +----------------------------------------------------+ Best States ------------- Heat Dissipation 34 Energy Generation 29 Energy Capacity 500 Matter Stores 500 Matter Capacity 500 Sight Range 16 Robot Scan Range 15 Terrain Scan Range 16 Terrain Scan Density 210 Additional Mass Support 9 Armor Coverage 150 Evasion (%) 64 Recoil Reduction 2 Item Schematics ----------------- Hcp. Matter Pod | -9/Materials | Scanalyzed Lrg. Storage Unit | -9/Materials | Scanalyzed Weight Redist. System | -9/Materials | Scanalyzed Cesium-ion Thruster | -8/Materials | Scanalyzed Surge Thruster | -8/Materials | Scanalyzed Adv. ECM Suite | -7/Factory | Scanalyzed Robot Schematics ------------------ None Fabricated ------------ Nothing Alien Tech Used ----------------- None Achievements -------------- Slippery One Challenges ------------ None Game ------ Seed TitaniumMappingSegregator Manual? 0 Play Time 03:55:47 Cumulative 51.2 hours Start 2023.10.03 @ 20:16:32 End 2023.10.07 @ 01:41:59 Sessions 9 Manual Loads 0 Difficulty Rogue Special Mode None Game No. 18 Rogue 10 Adventurer 2 Explorer 6 Win Type - Total 0 Types 0/0/0/0/0/0/0/0/0 Lore% 20 Gallery% 28 Achievement% 26 Wizard Run 0 Options --------- ASCII 0 Keyboard 0 Movement Mouse Keybinds 0 Fullscreen 2 Font 18/Smallcaps Map View 76x50 Tactical HUD 1 Map Filters NONE Filters NONE Steam X RUN: 3f251c67-a73b-43ca-9c77-ee10b0484db4